bitfinex/quotes_BTCUSD_20250703
["timestamp","ask_amount","ask_price","bid_price","bid_amount"]
[1751559365019,1.09561536,109410.0,109400.0,1e-08]
[1751559365234,0.60341002,109410.0,109400.0,0.04680001]
[1751559365444,0.56961,109410.0,109400.0,0.04680001]
[1751559365651,0.94341002,109410.0,109400.0,0.04680001]
[1751559367754,0.94341002,109410.0,109400.0,0.055345]
[1751559367966,0.22961,109410.0,109400.0,0.055345]
[1751559368192,0.202125,109410.0,109400.0,0.11998971]
[1751559368407,0.202125,109410.0,109400.0,0.12853448]
[1751559368643,0.201125,109410.0,109400.0,0.12853448]
[1751559368830,0.201125,109410.0,109400.0,0.12953448]
[1751559369240,0.201125,109410.0,109400.0,0.32149043]
[1751559369443,0.201125,109410.0,109400.0,0.40378676]
[1751559369693,0.19198549,109410.0,109400.0,0.40378676]
[1751559369901,0.19198549,109410.0,109400.0,0.41392744]
[1751559370325,0.19198549,109410.0,109400.0,0.05734478]
[1751559370326,0.55664575,109410.0,109400.0,0.05734478]
[1751559370543,0.55664575,109410.0,109400.0,0.01054478]
[1751559370544,6.30379777,109410.0,109400.0,0.01054478]
[1751559370774,6.45009935,109410.0,109400.0,0.01054478]
[1751559371022,6.47758435,109410.0,109400.0,0.01054478]
[1751559371241,6.49930345,109410.0,109400.0,0.01054478]
[1751559371494,6.49930255,109410.0,109400.0,0.00954824]
[1751559371709,6.45080255,109410.0,109400.0,0.00854824]
[1751559372129,6.45180255,109410.0,109400.0,0.00854824]
[1751559374949,6.5520395,109410.0,109400.0,0.00854824]
[1751559375639,6.55202654,109410.0,109400.0,0.00854824]
[1751559375859,6.49928959,109410.0,109400.0,0.00854824]
[1751559376565,5.75168955,109410.0,109400.0,0.00854824]
[1751559376782,6.49928959,109410.0,109400.0,0.00854824]
[1751559378802,6.69204959,109410.0,109400.0,0.00854824]
[1751559379496,6.69204959,109410.0,109400.0,1e-08]
[1751559379721,6.78348652,109410.0,109400.0,1e-08]
[1751559379977,6.69204959,109410.0,109400.0,1e-08]
[1751559380430,6.45056959,109410.0,109400.0,1e-08]
[1751559380701,6.64422959,109410.0,109400.0,1e-08]
[1751559381150,6.64422959,109410.0,109400.0,0.00854786]
[1751559382823,6.69342959,109410.0,109400.0,1e-08]
[1751559383445,6.69342959,109410.0,109400.0,0.00855303]
[1751559384300,6.73561254,109410.0,109400.0,0.00855303]
[1751559384737,6.73561254,109410.0,109390.0,0.0002]
[1751559384738,0.00914051,109400.0,109390.0,0.0002]
[1751559384949,6.60582543,109400.0,109390.0,1e-08]
[1751559385176,6.63389532,109400.0,109390.0,1e-08]
[1751559385404,1.67639599,109400.0,109390.0,1e-08]
[1751559385610,6.66102799,109400.0,109390.0,1e-08]
[1751559386359,6.66302799,109400.0,109390.0,1e-08]
[1751559386786,6.28922797,109400.0,109390.0,1e-08]
[1751559386996,6.24052797,109400.0,109390.0,1e-08]
[1751559387445,1.0364033,109400.0,109390.0,0.04950001]
[1751559387667,1.2771633,109400.0,109390.0,0.04950001]
[1751559387885,1.37209705,109400.0,109390.0,0.04950001]
[1751559388095,1.37209705,109400.0,109390.0,0.04850001]
[1751559388511,1.37409705,109400.0,109390.0,0.04850001]
[1751559389839,1.37366005,109400.0,109390.0,0.04850001]
[1751559390715,0.90492628,109400.0,109390.0,0.04850001]
[1751559390959,0.20465946,109400.0,109390.0,0.04850001]
[1751559391452,0.03098437,109400.0,109390.0,0.35019278]
[1751559391694,0.01114001,109400.0,109390.0,0.81892655]
[1751559391922,0.19238549,109410.0,109400.0,0.21023664]
[1751559391923,0.0370053,109410.0,109400.0,0.21023664]
[1751559392149,0.0370053,109410.0,109400.0,0.42366327]
[1751559392592,0.01872586,109410.0,109400.0,0.42366327]
[1751559393059,0.01872578,109410.0,109400.0,0.42366327]
[1751559393492,0.00958635,109410.0,109400.0,0.42366327]
[1751559393718,0.00044709,109410.0,109400.0,0.90693789]
[1751559393932,0.00044709,109410.0,109400.0,1.09921789]
[1751559394358,0.00044709,109410.0,109400.0,1.10121789]
[1751559394788,0.00958635,109410.0,109400.0,0.55929442]
[1751559394995,0.00958635,109410.0,109400.0,0.56229442]
[1751559395218,0.00044709,109410.0,109400.0,0.56229442]
[1751559395989,0.00044709,109410.0,109400.0,1.10421789]
[1751559396256,0.18273184,109450.0,109440.0,0.24088595]
[1751559396461,0.18273184,109450.0,109440.0,0.25002329]
[1751559396675,0.21927702,109450.0,109440.0,0.36857131]
[1751559396848,0.02740859,109450.0,109440.0,0.36857131]
[1751559397034,0.02740859,109450.0,109440.0,0.36857073]
[1751559397454,0.21927693,109450.0,109440.0,0.36871231]
[1751559397654,0.21927693,109450.0,109440.0,0.35957547]
[1751559397859,0.21927752,109450.0,109440.0,0.34330155]
[1751559398059,0.20100493,109450.0,109440.0,0.14227851]
[1751559398270,0.19186843,109450.0,109440.0,0.14227851]
[1751559398642,0.19186843,109450.0,109440.0,0.05084158]
[1751559399170,0.6606022,109450.0,109440.0,0.05084158]
[1751559399365,0.19186843,109450.0,109440.0,0.05084158]
[1751559406342,0.19226843,109450.0,109440.0,0.05084158]
[1751559406990,0.6610022,109450.0,109440.0,0.05084158]
[1751559408042,0.6610022,109450.0,109440.0,0.00214158]
[1751559410770,1.0010022,109450.0,109440.0,0.00214158]
[1751559411585,0.9999022,109450.0,109440.0,0.00214158]
[1751559412210,1.0009022,109450.0,109440.0,0.00214158]
[1751559412799,1.1925422,109450.0,109440.0,0.00214158]
[1751559413149,1.1925422,109450.0,109440.0,0.00014158]
[1751559415188,0.8525422,109450.0,109440.0,0.00014158]
[1751559415390,1.1925422,109450.0,109440.0,0.00014158]
[1751559419552,0.54104116,109430.0,109420.0,0.0479]
[1751559419768,1.00977493,109430.0,109420.0,0.04804158]
[1751559421108,1.01077493,109430.0,109420.0,0.04804158]
[1751559422443,1.10221186,109430.0,109420.0,0.00014158]
[1751559422660,1.31725186,109430.0,109420.0,0.00014158]
[1751559422868,1.10221186,109430.0,109420.0,0.00014158]
[1751559423112,1.108591,109430.0,109420.0,0.00014158]
[1751559423517,1.12968986,109430.0,109420.0,0.00014158]
[1751559427872,0.66095609,109430.0,109420.0,0.00014158]
[1751559428114,1.12968986,109430.0,109420.0,0.00014158]
[1751559430874,1.2056712,109430.0,109420.0,0.00014158]
[1751559431090,1.12968986,109430.0,109420.0,0.00014158]
[1751559433484,0.78968986,109430.0,109420.0,0.00014158]
[1751559433900,0.69575875,109430.0,109420.0,0.00014158]
[1751559438355,0.32095609,109430.0,109420.0,0.00014158]
[1751559438792,0.69575875,109430.0,109420.0,0.00014158]
[1751559439655,0.32095609,109430.0,109420.0,0.00014158]
[1751559439862,0.69575875,109430.0,109420.0,0.00014158]
[1751559440096,0.22951916,109430.0,109420.0,0.04924158]
[1751559440318,0.20204116,109430.0,109420.0,0.61596511]
[1751559440537,0.20204149,109430.0,109420.0,0.61596519]
[1751559440759,0.20204149,109430.0,109420.0,0.68915489]
[1751559441233,0.20204149,109430.0,109420.0,0.70763249]
[1751559441462,0.01013759,109430.0,109420.0,0.80820793]
[1751559441687,0.02841336,109430.0,109420.0,0.80820793]
[1751559441928,0.03755145,109430.0,109420.0,0.43440527]
[1751559442162,0.03655145,109430.0,109420.0,0.43440527]
[1751559442382,0.03655145,109430.0,109420.0,0.43340527]
[1751559442619,0.02741327,109430.0,109420.0,0.43740527]
[1751559442830,0.02741327,109430.0,109420.0,0.43940527]
[1751559443070,0.03655128,109430.0,109420.0,0.43940527]
[1751559443495,0.04568937,109430.0,109420.0,0.43740527]
[1751559443699,0.04568937,109430.0,109420.0,0.44140527]
[1751559444121,0.19188587,109440.0,109430.0,0.21017926]
[1751559444342,0.19116843,109450.0,109440.0,0.23214853]
[1751559444568,0.19116843,109450.0,109440.0,0.14083693]
[1751559446330,0.19116843,109450.0,109440.0,0.14183693]
[1751559446554,0.65935288,109450.0,109440.0,0.0504]
[1751559446983,0.65935288,109450.0,109440.0,0.001]
[1751559448065,0.19188578,109440.0,109430.0,0.0386]
[1751559448276,0.66007023,109440.0,109430.0,0.024]
[1751559448497,0.19190332,109430.0,109420.0,0.00034158]
[1751559448739,0.7515247,109430.0,109420.0,0.00034158]
[1751559449464,1.03180247,109430.0,109420.0,0.00034158]
[1751559449653,0.9926247,109430.0,109420.0,0.00034158]
[1751559449895,1.01438536,109430.0,109420.0,0.00034158]
[1751559450315,1.01538536,109430.0,109420.0,0.00034158]
[1751559450734,1.01438536,109430.0,109420.0,0.00034158]
[1751559450943,1.04486636,109430.0,109420.0,0.00034158]
[1751559451774,1.04686636,109430.0,109420.0,0.00034158]
[1751559453018,1.05323392,109430.0,109420.0,0.00034158]
[1751559453643,6.06497212,109430.0,109420.0,0.00034158]
[1751559454322,6.40497212,109430.0,109420.0,0.00034158]
[1751559456398,6.46951297,109430.0,109420.0,1e-08]
[1751559456817,6.66951297,109430.0,109420.0,1e-08]
[1751559458256,6.6967131,109430.0,109420.0,1e-08]
[1751559458672,5.1765704,109410.0,109400.0,0.0733897]
[1751559458880,5.97495178,109410.0,109400.0,0.0738619]
[1751559459289,6.00243678,109410.0,109400.0,0.0738619]
[1751559459514,6.02753678,109410.0,109400.0,0.0738619]
[1751559460632,6.05223678,109410.0,109400.0,0.0748619]
[1751559460843,6.05223678,109410.0,109400.0,0.0026722]
[1751559461752,7.23813293,109410.0,109400.0,1e-08]
[1751559461997,7.26733306,109410.0,109400.0,1e-08]
[1751559462244,0.6458968,109400.0,109390.0,1e-08]
[1751559462501,6.12194325,109400.0,109390.0,4.71e-05]
[1751559463618,6.5901277,109400.0,109390.0,4.71e-05]
[1751559463832,6.5901277,109400.0,109390.0,0.0010471]
[1751559464282,6.56839378,109400.0,109390.0,0.0010471]
[1751559464489,6.56939378,109400.0,109390.0,0.0010471]
[1751559465757,6.76043378,109400.0,109390.0,0.0010471]
[1751559466586,6.7694366,109400.0,109390.0,0.0010471]
[1751559467594,6.7969266,109400.0,109390.0,0.0010471]
[1751559467794,6.32710344,109400.0,109390.0,0.0010471]
[1751559467998,6.23566651,109400.0,109390.0,0.0010471]
[1751559468907,6.25956651,109400.0,109390.0,0.0010471]
[1751559470341,6.25956651,109400.0,109390.0,1e-08]
[1751559470543,6.69921617,109400.0,109390.0,1e-08]
[1751559470794,6.77091108,109400.0,109390.0,1e-08]
[1751559470934,6.86234801,109400.0,109390.0,1e-08]
[1751559471558,0.54113307,109380.0,109370.0,0.0002]
[1751559471712,1.62158762,109380.0,109370.0,0.0002]
[1751559471919,1.34039512,109380.0,109370.0,0.0002]
[1751559472538,1.34139512,109380.0,109370.0,0.0002]
[1751559472765,1.36888812,109380.0,109370.0,0.0002]
[1751559474027,0.899863,109380.0,109370.0,0.0002]
[1751559474241,1.36888812,109380.0,109370.0,0.0002]
[1751559478130,0.899863,109380.0,109370.0,0.0002]
[1751559478354,1.36888812,109380.0,109370.0,0.0002]
[1751559479929,1.36888812,109380.0,109370.0,0.0251]
[1751559483534,0.54115162,109370.0,109360.0,0.0968897]
[1751559483720,1.29261367,109370.0,109360.0,0.1054372]
[1751559484759,1.29261367,109370.0,109360.0,0.1064372]
[1751559485736,1.29261367,109370.0,109360.0,0.1084372]
[1751559486644,1.29261367,109370.0,109360.0,0.1315372]
[1751559488322,1.29261367,109370.0,109360.0,0.0583475]
[1751559489607,1.31348721,109370.0,109360.0,0.0583475]
[1751559489839,1.31348721,109370.0,109360.0,0.0117475]
[1751559490046,1.35847751,109370.0,109360.0,0.0117475]
[1751559491100,1.35847751,109370.0,109360.0,0.0107475]
[1751559491509,1.36047751,109370.0,109360.0,0.0087475]
[1751559491708,1.33960397,109370.0,109360.0,0.0087475]
[1751559491941,1.34160397,109370.0,109360.0,0.0087475]
[1751559492144,1.31840397,109370.0,109360.0,0.0087475]
[1751559492298,1.34638818,109370.0,109360.0,0.0087475]
[1751559492714,0.87736306,109370.0,109360.0,0.0087475]
[1751559492937,1.34638818,109370.0,109360.0,0.0326475]
[1751559493978,1.25261034,109370.0,109360.0,0.0326475]
[1751559495156,1.34404727,109370.0,109360.0,0.0087475]
[1751559495354,6.35187927,109370.0,109360.0,0.0087475]
[1751559495557,6.37527927,109370.0,109360.0,0.0087475]
[1751559496362,6.28384234,109370.0,109360.0,0.0087475]
[1751559497137,6.26044234,109370.0,109360.0,0.0087475]
[1751559497427,6.28464234,109370.0,109360.0,0.0087475]
[1751559498509,6.28464234,109370.0,109360.0,1e-08]
[1751559498742,6.31184247,109370.0,109360.0,1e-08]
[1751559498948,6.36126128,109370.0,109360.0,1e-08]
[1751559499396,0.19202616,109360.0,109350.0,0.0002]
[1751559499606,1.22491765,109360.0,109350.0,0.0002]
[1751559499817,1.28253828,109350.0,109340.0,0.1226897]
[1751559500038,1.54304858,109350.0,109340.0,0.1226897]
[1751559500449,1.57054658,109350.0,109340.0,0.0733897]
[1751559500653,1.57054658,109350.0,109340.0,0.07353142]
[1751559501068,1.57054658,109350.0,109340.0,0.09693142]
[1751559501685,1.57054658,109350.0,109340.0,0.09793142]
[1751559501867,1.1952993,109350.0,109340.0,0.09793142]
[1751559502105,1.1952993,109350.0,109340.0,0.09993142]
[1751559502307,1.146011,109350.0,109340.0,0.09893142]
[1751559502527,1.146011,109350.0,109340.0,0.09693142]
[1751559502765,0.53206128,109340.0,109330.0,0.1]
[1751559502972,0.81441821,109340.0,109330.0,0.1001296]
[1751559503206,1.18966549,109340.0,109330.0,0.1001296]
[1751559504913,1.18966549,109340.0,109330.0,0.1232296]
[1751559505134,0.53206128,109340.0,109330.0,0.1475296]
[1751559505348,0.01829081,109340.0,109330.0,0.80633825]
[1751559505568,0.01829031,109340.0,109330.0,0.81548436]
[1751559505790,0.00914503,109340.0,109330.0,0.81548436]
[1751559506210,0.01829031,109340.0,109330.0,0.81548436]
[1751559506443,0.01829031,109340.0,109330.0,0.90692129]
[1751559506444,0.00914503,109340.0,109330.0,0.90692129]
[1751559506657,0.0274355,109340.0,109330.0,0.90692129]
[1751559506870,0.04572664,109340.0,109330.0,0.90692129]
[1751559507530,0.03658094,109340.0,109330.0,0.90692129]
[1751559507746,0.04572655,109340.0,109330.0,0.90692129]
[1751559507968,0.00914503,109340.0,109330.0,0.90692129]
[1751559508175,0.21033318,109350.0,109340.0,0.257352]
[1751559508411,0.20118866,109350.0,109340.0,0.23906137]
[1751559508622,0.27712048,109350.0,109340.0,0.047]
[1751559508844,0.56729116,109350.0,109340.0,0.047]
[1751559509060,0.56929116,109350.0,109340.0,0.047]
[1751559510161,0.56929116,109350.0,109340.0,0.048]
[1751559510392,0.19204388,109350.0,109340.0,0.048]
[1751559510596,0.56729116,109350.0,109340.0,0.048]
[1751559510811,0.56729116,109350.0,109340.0,0.05]
[1751559511065,0.19204388,109350.0,109340.0,0.05]
[1751559511273,0.56729116,109350.0,109340.0,0.05]
[1751559512325,0.19204388,109350.0,109340.0,0.049]
[1751559512532,0.56729116,109350.0,109340.0,0.049]
[1751559513154,0.19204388,109350.0,109340.0,0.049]
[1751559513568,0.19204388,109350.0,109340.0,0.047]
[1751559516026,0.56729116,109350.0,109340.0,0.047]
[1751559516239,0.19206128,109340.0,109330.0,0.1493296]
[1751559517307,0.19206128,109340.0,109330.0,0.1513296]
[1751559518170,0.19206128,109340.0,109330.0,0.1523296]
[1751559524160,0.56730856,109340.0,109330.0,0.1523296]
[1751559524365,6.08175749,109340.0,109330.0,0.1033296]
[1751559524746,6.16442872,109340.0,109330.0,0.1033296]
[1751559524927,6.18620783,109340.0,109330.0,0.1033296]
[1751559525126,6.18620783,109340.0,109330.0,0.1023296]
[1751559526234,6.18620783,109340.0,109330.0,0.11090005]
[1751559526392,6.18620783,109340.0,109330.0,0.1023296]
[1751559526594,6.1035366,109340.0,109330.0,0.1003296]
[1751559527085,1.1189046,109340.0,109330.0,0.1003296]
[1751559527300,6.1035366,109340.0,109330.0,0.1003296]
[1751559528142,6.1310406,109340.0,109330.0,0.1003296]
[1751559531425,6.19558145,109340.0,109330.0,0.1003296]
[1751559531669,6.19558145,109340.0,109310.0,0.0002]
[1751559531670,0.54124345,109320.0,109310.0,0.0002]
[1751559531797,1.00792766,109320.0,109310.0,0.00876328]
[1751559532401,1.00792766,109320.0,109310.0,0.03236328]
[1751559535430,1.00792766,109320.0,109310.0,0.0238]
[1751559535819,1.01699503,109320.0,109310.0,0.03235539]
[1751559536698,1.01699503,109320.0,109310.0,0.00875539]
[1751559536867,1.01699503,109320.0,109310.0,0.0255]
[1751559537092,0.64174775,109320.0,109310.0,0.05885453]
[1751559537460,1.01699503,109320.0,109310.0,0.05885453]
[1751559538460,1.01699503,109320.0,109310.0,0.03405453]
[1751559539854,1.01699503,109320.0,109310.0,0.05885453]
[1751559540258,0.3582144,109320.0,109310.0,0.2418204]
[1751559540471,0.0091457,109340.0,109330.0,0.19207902]
[1751559540726,0.00914528,109340.0,109330.0,0.63451828]
[1751559540886,0.00914503,109340.0,109330.0,0.70770798]
[1751559541099,0.01829022,109340.0,109330.0,0.70770798]
[1751559541523,0.0004,109350.0,109340.0,0.258152]
[1751559541729,0.0004,109350.0,109340.0,0.63339928]
[1751559541730,0.01883021,109350.0,109340.0,0.63339928]
[1751559541931,0.03711968,109350.0,109340.0,0.63339937]
[1751559542145,0.22001862,109350.0,109340.0,0.60596295]
[1751559542355,0.1925853,109350.0,109340.0,0.60596295]
[1751559542582,0.1925853,109350.0,109340.0,0.06489935]
[1751559542970,0.56783258,109350.0,109340.0,0.06489935]
[1751559543399,0.56783258,109350.0,109340.0,0.06589935]
[1751559543957,0.1925853,109350.0,109340.0,0.06589935]
[1751559544408,0.5325853,109350.0,109340.0,0.04219935]
[1751559544609,1.09316762,109350.0,109340.0,0.001]
[1751559544813,0.62402223,109350.0,109340.0,0.001]
[1751559545035,0.62402223,109350.0,109340.0,0.027]
[1751559545656,0.5325853,109350.0,109340.0,0.027]
[1751559545867,0.5325853,109350.0,109340.0,0.0508]
[1751559547447,0.5325853,109350.0,109340.0,0.0518]
[1751559547854,0.5325853,109350.0,109340.0,0.0538]
[1751559550722,0.5325853,109350.0,109340.0,0.029]
[1751559550936,0.5325853,109350.0,109340.0,0.003]
[1751559551386,0.5325853,109350.0,109340.0,0.028]
[1751559551602,0.5325853,109350.0,109340.0,0.003]
[1751559551815,0.5325853,109350.0,109340.0,0.0288]
[1751559552260,0.5325853,109350.0,109340.0,0.0268]
[1751559552475,0.5325853,109350.0,109340.0,0.0258]
[1751559553122,0.5325853,109350.0,109340.0,0.05]
[1751559553813,0.5325853,109350.0,109340.0,0.0258]
[1751559554868,0.5325853,109350.0,109340.0,0.0499]
[1751559564154,0.5325853,109350.0,109340.0,0.0258]
[1751559564396,0.19206128,109340.0,109330.0,0.0243]
[1751559564619,1.1418436,109340.0,109330.0,0.0002]
[1751559565740,1.1418436,109340.0,109330.0,0.0012]
[1751559565944,6.0327598,109340.0,109330.0,0.0012]
[1751559566127,6.05453473,109340.0,109330.0,0.0002]
[1751559567932,6.05453473,109340.0,109330.0,0.0022]
[1751559568147,6.05453473,109340.0,109330.0,0.0002]
[1751559568952,6.05653473,109340.0,109330.0,0.0002]
[1751559569160,6.05853473,109340.0,109330.0,0.0002]
[1751559570606,6.09542178,109340.0,109330.0,0.0002]
[1751559571192,6.08572882,109340.0,109330.0,0.0002]
[1751559571367,0.91667304,109320.0,109310.0,0.0243]
[1751559571595,1.19890997,109320.0,109310.0,0.00876332]
[1751559571798,1.24770997,109320.0,109310.0,0.00876332]
[1751559572160,1.24770997,109320.0,109310.0,0.0002]
[1751559572602,1.19890997,109320.0,109310.0,0.0012]
[1751559572801,1.22410997,109320.0,109310.0,0.0012]
[1751559573019,1.22410997,109320.0,109310.0,0.0002]
[1751559573149,1.22410997,109320.0,109310.0,0.0022]
[1751559573345,1.22610997,109320.0,109310.0,0.0022]
[1751559574658,0.63468038,109320.0,109310.0,0.0248]
[1751559574864,0.54424345,109320.0,109310.0,0.42532959]
[1751559575106,0.53509642,109320.0,109310.0,0.68148516]
[1751559575337,0.53509642,109320.0,109310.0,0.69978166]
[1751559575752,0.53409642,109320.0,109310.0,0.69978166]
[1751559575964,0.53409642,109320.0,109310.0,0.50151929]
[1751559576170,0.53409642,109320.0,109310.0,0.1260897]
[1751559576798,0.53409642,109320.0,109310.0,0.0529]
[1751559577007,0.53209642,109320.0,109310.0,0.0529]
[1751559577205,0.90752601,109320.0,109310.0,0.0529]
[1751559577420,0.90852601,109320.0,109310.0,0.0529]
[1751559577824,0.90752601,109320.0,109310.0,0.0529]
[1751559578927,0.53209642,109320.0,109310.0,0.0529]
[1751559580679,0.53209642,109320.0,109310.0,0.0549]
[1751559582135,0.53209642,109320.0,109310.0,0.23786587]
[1751559582390,0.53209642,109320.0,109310.0,0.0549]
[1751559585428,0.53209642,109320.0,109310.0,0.24701416]
[1751559585640,0.53209642,109320.0,109310.0,0.0549]
[1751559586452,0.53209642,109320.0,109310.0,0.24701416]
[1751559586651,0.51829281,109330.0,109320.0,0.24368673]
[1751559586851,5.49377803,109330.0,109320.0,0.73126496]
[1751559587070,0.01829031,109340.0,109330.0,0.25947108]
[1751559587278,0.01829014,109340.0,109330.0,0.72875532]
[1751559587480,0.19258522,109350.0,109340.0,0.25945226]
[1751559587481,0.0188308,109350.0,109340.0,0.25945226]
[1751559587840,0.22001886,109350.0,109340.0,0.7287365]
[1751559587977,0.22001886,109350.0,109340.0,0.25925572]
[1751559588575,0.21087459,109350.0,109340.0,0.24116145]
[1751559588775,0.19258538,109350.0,109340.0,0.0491]
[1751559588980,0.19258538,109350.0,109340.0,0.24116128]
[1751559589186,0.19258538,109350.0,109340.0,0.23201567]
[1751559589417,0.18344044,109350.0,109340.0,0.23201567]
[1751559589772,0.18344044,109350.0,109340.0,0.23301567]
[1751559590000,0.18344044,109350.0,109340.0,0.24216137]
[1751559590211,0.19258538,109350.0,109340.0,0.25130681]
[1751559590419,0.19258538,109350.0,109340.0,0.24216137]
[1751559590623,0.19258538,109350.0,109340.0,0.0501]
[1751559590838,0.19258538,109350.0,109340.0,0.0481]
[1751559591684,0.19258538,109350.0,109340.0,0.0245]
[1751559591888,0.19258538,109350.0,109340.0,0.24236145]
[1751559592105,0.19258538,109350.0,109340.0,0.05944578]
[1751559592315,0.19258538,109350.0,109340.0,0.72079122]
[1751559592316,0.21087451,109350.0,109340.0,0.72079122]
[1751559592525,0.21087451,109350.0,109340.0,0.25150698]
[1751559592697,0.21087451,109350.0,109340.0,0.26065242]
[1751559592909,0.21087451,109350.0,109340.0,0.26979778]
[1751559593272,0.21087451,109350.0,109340.0,0.27894306]
[1751559593740,0.21087451,109350.0,109340.0,0.26979778]
[1751559594286,0.21087451,109350.0,109340.0,0.26065242]
[1751559594471,0.19258538,109350.0,109340.0,0.0503]
[1751559594770,0.18344044,109350.0,109340.0,0.0245]
[1751559595113,0.18344044,109350.0,109340.0,0.001]
[1751559595114,0.99272468,109350.0,109340.0,0.001]
[1751559595673,0.52344044,109350.0,109340.0,0.001]
[1751559596215,0.19206128,109340.0,109330.0,0.025]
[1751559597576,0.19206128,109340.0,109330.0,0.026]
[1751559598497,0.52379778,109350.0,109340.0,0.0247]
[1751559598710,0.52379778,109350.0,109340.0,0.0492]
[1751559600479,0.20120681,109340.0,109330.0,0.2323324]
[1751559600679,0.20120681,109340.0,109330.0,0.24147885]
[1751559600883,0.20120681,109340.0,109330.0,0.25062505]
[1751559601093,0.21949829,109340.0,109330.0,0.25977116]
[1751559601509,0.02743684,109340.0,109330.0,0.26891719]
[1751559601742,0.21035251,109340.0,109330.0,0.27091719]
[1751559601945,0.21949829,109340.0,109330.0,0.25262505]
[1751559602167,0.21949829,109340.0,109330.0,0.25362505]
[1751559602452,0.21949829,109340.0,109330.0,0.24447885]
[1751559602603,0.21035276,109340.0,109330.0,0.24447885]
[1751559602808,0.20120715,109340.0,109330.0,0.24447885]
[1751559603441,0.19206145,109340.0,109330.0,0.2353324]
[1751559603614,0.19206145,109340.0,109330.0,0.24447893]
[1751559603813,0.19206145,109340.0,109330.0,0.25362538]
[1751559604538,0.20120698,109340.0,109330.0,0.26277174]
[1751559604698,0.20120698,109340.0,109330.0,0.24447893]
[1751559604936,0.20120698,109340.0,109330.0,0.2353324]
[1751559605354,0.20120698,109340.0,109330.0,0.0276]
[1751559605558,0.20120698,109340.0,109330.0,0.25452538]
[1751559605795,0.20120698,109340.0,109330.0,0.26367158]
[1751559606010,0.20120698,109340.0,109330.0,0.25452538]
[1751559606244,0.20120698,109340.0,109330.0,0.26367166]
[1751559606417,0.19206145,109340.0,109330.0,0.25452547]
[1751559607509,0.19206145,109340.0,109330.0,0.27281795]
[1751559608441,0.19206145,109340.0,109330.0,0.25452547]
[1751559608641,0.19206145,109340.0,109330.0,0.26367183]
[1751559609107,0.19206145,109340.0,109330.0,0.27281803]
[1751559609539,0.19246145,109340.0,109330.0,0.27281803]
[1751559609743,0.20160698,109340.0,109330.0,0.27281803]
[1751559609974,0.01869131,109340.0,109330.0,0.28196414]
[1751559610190,0.20160698,109340.0,109330.0,0.24537902]
[1751559610393,0.20160698,109340.0,109330.0,0.25452555]
[1751559610720,0.01869081,109340.0,109330.0,0.27281794]
[1751559610850,0.03698212,109340.0,109330.0,0.28196397]
[1751559611057,0.21989829,109340.0,109330.0,0.263672]
[1751559611256,0.21075276,109340.0,109330.0,0.263672]
[1751559611461,0.20160715,109340.0,109330.0,0.20967902]
[1751559611656,0.20160715,109340.0,109330.0,0.21337191]
[1751559611867,0.01869148,109340.0,109330.0,0.24691802]
[1751559612070,0.20160715,109340.0,109330.0,0.24691802]
[1751559612319,0.01869148,109340.0,109330.0,0.25606405]
[1751559612680,0.20160715,109340.0,109330.0,0.25606405]
[1751559612884,0.20160715,109340.0,109330.0,0.24691819]
[1751559613083,0.20160715,109340.0,109330.0,0.60390372]
[1751559613303,0.20160715,109340.0,109330.0,0.24691828]
[1751559614503,0.20160715,109340.0,109330.0,0.261572]
[1751559615736,0.20160715,109340.0,109330.0,0.27071836]
[1751559616498,0.20160715,109340.0,109330.0,0.27986447]
[1751559616707,0.0004,109340.0,109330.0,0.65514205]
[1751559616969,0.0004,109340.0,109330.0,0.81976868]
[1751559617160,0.0004,109340.0,109330.0,1.2095877]
[1751559617380,0.0004,109340.0,109330.0,0.88917475]
[1751559617589,0.01869031,109340.0,109330.0,0.74657915]
[1751559617794,0.00954503,109340.0,109330.0,0.80044437]
[1751559617997,0.01869022,109340.0,109330.0,0.80044437]
[1751559618132,0.02783566,109340.0,109330.0,0.4251662]
[1751559618337,0.21989694,109340.0,109330.0,0.36615495]
[1751559618538,0.21075191,109340.0,109330.0,0.36415495]
[1751559618754,0.21075191,109340.0,109330.0,0.37330073]
[1751559618954,0.21075191,109340.0,109330.0,0.37730073]
[1751559619167,0.21075191,109340.0,109330.0,0.37730031]
[1751559619365,0.2198982,109340.0,109330.0,0.34071595]
[1751559619567,0.91688532,109340.0,109330.0,0.009]
[1751559620389,0.91688532,109340.0,109330.0,0.005]
[1751559620762,0.19207885,109330.0,109320.0,0.0256]
[1751559620964,0.21039007,109320.0,109310.0,0.26925794]
[1751559621164,0.21953752,109320.0,109310.0,0.73597304]
[1751559621572,0.03658813,109320.0,109310.0,0.74512074]
[1751559622442,0.22868464,109320.0,109310.0,0.74512074]
[1751559622605,0.22868539,109320.0,109310.0,0.74512074]
[1751559623008,0.22868539,109320.0,109310.0,0.74912074]
[1751559623683,0.22868539,109320.0,109310.0,0.75212074]
[1751559623916,0.22868539,109320.0,109310.0,0.0567]
[1751559624155,0.20124396,109320.0,109310.0,0.0567]
[1751559624392,0.20124363,109320.0,109310.0,0.25796203]
[1751559624640,0.20124363,109320.0,109310.0,0.24881399]
[1751559624881,0.19209651,109320.0,109310.0,0.23966587]
[1751559625127,0.18294914,109320.0,109310.0,0.0567]
[1751559625560,0.18294914,109320.0,109310.0,0.23966587]
[1751559625781,0.18294914,109320.0,109310.0,0.24881408]
[1751559627980,0.18294914,109320.0,109310.0,0.26711015]
[1751559628152,0.19209651,109320.0,109310.0,0.26711007]
[1751559628525,0.19209651,109320.0,109310.0,0.63324037]
[1751559628726,0.19209651,109320.0,109310.0,0.64238832]
[1751559628932,0.19207902,109330.0,109320.0,0.19209634]
[1751559629136,0.02743909,109330.0,109320.0,0.62632179]
[1751559629329,0.21037149,109330.0,109320.0,0.61717459]
[1751559630023,0.21962779,109330.0,109320.0,0.42507817]
[1751559630235,0.21048168,109330.0,109320.0,0.62217476]
[1751559630431,0.20133532,109330.0,109320.0,0.62217476]
[1751559630861,0.19207902,109330.0,109320.0,0.64046941]
[1751559631065,0.19243636,109330.0,109320.0,0.64046941]
[1751559631504,0.19243636,109330.0,109320.0,0.25604396]
[1751559632054,0.19243636,109330.0,109320.0,0.0548]
[1751559632254,0.18328974,109330.0,109320.0,0.0548]
[1751559633451,0.19232946,109330.0,109320.0,0.005]
[1751559634303,0.19232946,109330.0,109320.0,0.031]
[1751559635270,0.19232946,109330.0,109320.0,0.005]
[1751559636942,0.18328974,109330.0,109320.0,0.0546]
[1751559637319,0.18328974,109330.0,109320.0,0.42987817]
[1751559638440,0.18328974,109330.0,109320.0,0.0546]
[1751559638857,0.18328974,109330.0,109320.0,0.23754914]
[1751559639025,0.18328974,109330.0,109320.0,0.0546]
[1751559640464,0.19243585,109330.0,109320.0,0.25584354]
[1751559640668,0.0095032,109330.0,109320.0,0.64026858]
[1751559640868,0.00035734,109330.0,109320.0,1.10698368]